bitfinex/quotes_SOLUSD_20260203
["timestamp","ask_amount","ask_price","bid_price","bid_amount"]
[1770145837612,15.68022086,98.38,98.344,4.11756643]
[1770145838009,15.68022086,98.37,98.344,4.11756643]
[1770145838319,15.68022086,98.36,98.321,4.11756643]
[1770145838496,15.68022086,98.37,98.321,4.11756643]
[1770145838696,4.16173249,98.395,98.321,4.11756643]
[1770145838697,15.68022086,98.36,98.321,4.11756643]
[1770145838915,15.68022086,98.36,98.303,4.11756643]
[1770145839118,4.16173249,98.377,98.294,4.11756643]
[1770145839704,4.16173249,98.377,98.301,4.11756643]
[1770145839935,15.68022086,98.35,98.301,4.11756643]
[1770145840119,15.68022086,98.34,98.301,4.11756643]
[1770145840535,15.68022086,98.38,98.331,4.11756643]
[1770145840709,15.68022086,98.38,98.279,28.24]
[1770145840710,4.16173249,98.377,98.31,15.68022086]
[1770145840908,15.68022086,98.35,98.3,15.68022086]
[1770145841110,15.68022086,98.36,98.31,15.68022086]
[1770145841312,4.16173249,98.373,98.311,4.11756643]
[1770145841541,15.68022086,98.38,98.33,15.68022086]
[1770145842112,15.68022086,98.35,98.302,4.11756643]
[1770145842308,15.68022086,98.34,98.302,4.11756643]
[1770145842609,4.16173249,98.391,98.321,4.11756643]
[1770145842817,15.68022086,98.37,98.321,4.11756643]
[1770145843033,15.68022086,98.36,98.321,4.11756643]
[1770145843239,4.16173249,98.391,98.331,4.11756643]
[1770145843411,15.68022086,98.37,98.331,4.11756643]
[1770145843611,15.68022086,98.36,98.311,4.11756643]
[1770145843920,15.68022086,98.35,98.291,4.11756643]
[1770145844111,15.68022086,98.35,98.301,4.11756643]
[1770145844312,15.68022086,98.35,98.303,4.11756643]
[1770145844732,0.14216157,98.373,98.311,4.11756643]
[1770145844733,4.16173249,98.372,98.311,4.11756643]
[1770145844936,15.68022086,98.36,98.312,11.43440169]
[1770145845128,25.39969748,98.427,98.321,4.11756643]
[1770145845129,4.30389406,98.406,98.321,4.11756643]
[1770145845306,15.68022086,98.38,98.331,4.11756643]
[1770145845507,15.68022086,98.4,98.351,4.11756643]
[1770145845913,15.68022086,98.37,98.293,4.11756643]
[1770145846126,15.68022086,98.38,98.33,19.79778729]
[1770145846414,4.16173249,98.389,98.331,7.31891384]
[1770145846415,15.68022086,98.37,98.331,7.31891384]
[1770145846615,15.68022086,98.37,98.33,4.11756643]
[1770145846616,15.68022086,98.34,98.298,4.11756643]
[1770145846821,15.68022086,98.34,98.301,4.11756643]
[1770145847028,0.14216157,98.372,98.301,4.11756643]
[1770145847029,15.68022086,98.33,98.301,4.11756643]
[1770145847229,0.14216157,98.357,98.301,4.11756643]
[1770145847422,4.12011516,98.358,98.301,4.11756643]
[1770145847423,15.68022086,98.35,98.301,4.11756643]
[1770145848026,15.68022086,98.41,98.301,4.11756643]
[1770145848027,15.68022086,98.34,98.301,4.11756643]
[1770145848229,15.68022086,98.31,98.27,4.11756643]
[1770145848416,4.12011516,98.329,98.253,4.11756643]
[1770145848417,15.68022086,98.3,98.253,4.11756643]
[1770145848620,15.68022086,98.31,98.261,4.11756643]
[1770145849031,15.68022086,98.3,98.261,4.11756643]
[1770145849734,4.12011516,98.314,98.261,4.11756643]
[1770145849934,4.12011516,98.314,98.248,4.11756643]
[1770145849935,15.68022086,98.29,98.248,4.11756643]
[1770145850233,4.27527085,98.337,98.232,4.11756643]
[1770145850437,15.68022086,98.28,98.232,4.11756643]
[1770145850666,15.68022086,98.26,98.215,4.33052928]
[1770145851134,4.12011516,98.283,98.22,15.68022086]
[1770145851334,15.68022086,98.27,98.221,4.33052928]
[1770145851834,15.68022086,98.28,98.231,4.33052928]
[1770145852050,4.12011516,98.3,98.231,4.33052928]
[1770145852051,0.14216157,98.299,98.231,4.33052928]
[1770145852250,15.68022086,98.28,98.231,4.33052928]
[1770145852425,15.68022086,98.25,98.2,4.33052928]
[1770145852625,0.14216157,98.265,98.2,4.33052928]
[1770145852626,4.12011516,98.264,98.2,4.33052928]
[1770145852822,15.68022086,98.24,98.2,4.33052928]
[1770145853334,15.68022086,98.25,98.202,4.38972576]
[1770145853533,15.68022086,98.26,98.211,4.38972576]
[1770145853735,15.68022086,98.25,98.211,4.38972576]
[1770145854138,15.68022086,98.24,98.191,4.38972576]
[1770145854330,15.68022086,98.22,98.19,0.2]
[1770145854536,0.14216157,98.278,98.19,0.2]
[1770145854537,4.27527085,98.275,98.19,0.2]
[1770145854731,15.68022086,98.23,98.19,0.2]
[1770145855146,4.12011516,98.247,98.19,0.2]
[1770145855357,15.68022086,98.23,98.19,0.2]
[1770145855648,15.68022086,98.24,98.191,4.38972576]
[1770145855947,15.68022086,98.22,98.19,0.2]
[1770145856548,15.68022086,98.23,98.19,0.2]
[1770145857546,6.53650504,98.28,98.19,0.2]
[1770145857547,4.12011516,98.248,98.19,4.58972576]
[1770145857934,15.68022086,98.22,98.19,4.58972576]
[1770145859140,15.68022086,98.2,98.19,0.2]
[1770145859540,15.68022086,98.2,98.15,15.68022086]
[1770145859541,15.68022086,98.2,98.15,4.38972576]
[1770145859742,15.68022086,98.19,98.15,4.38972576]
[1770145860144,0.14216157,98.214,98.15,4.38972576]
[1770145860350,15.68022086,98.18,98.15,4.38972576]
[1770145860851,25.44321167,98.259,98.15,4.38972576]
[1770145860852,15.68022086,98.2,98.151,4.38972576]
[1770145861358,10.17749446,98.257,98.14,10.38945286]
[1770145861360,4.12011516,98.268,98.19,15.68022086]
[1770145861563,40.66224973,98.372,98.152,39.93424875]
[1770145861564,1.96952405,98.264,98.25,15.68022086]
[1770145861852,5.3196639,98.315,98.251,4.38972576]
[1770145862055,15.68022086,98.28,98.23,4.38972576]
[1770145862354,10.16972289,98.332,98.211,4.38972576]
[1770145862355,15.68022086,98.25,98.211,4.38972576]
[1770145862553,15.68022086,98.26,98.211,4.38972576]
[1770145862745,35.59379643,98.332,98.165,28.28]
[1770145862746,4.26317603,98.298,98.25,20.06994662]
[1770145863052,15.68022086,98.3,98.166,1.01868263]
[1770145863053,15.68022086,98.28,98.23,4.38972576]
[1770145863252,15.68022086,98.28,98.166,50.05290195]
[1770145863253,4.26317603,98.239,98.177,4.38972576]
[1770145863453,15.68022086,98.2,98.161,4.38972576]
[1770145863633,4.27527085,98.272,98.141,4.38972576]
[1770145863634,15.68022086,98.17,98.141,4.38972576]
[1770145863835,15.36336461,98.17,98.141,4.38972576]
[1770145864036,15.68022086,98.15,98.093,4.38972576]
[1770145864230,0.14216157,98.18,98.093,4.38972576]
[1770145864231,0.14216157,98.148,98.093,4.38972576]
[1770145864448,15.68022086,98.14,98.093,4.38972576]
[1770145864642,28.08,98.21,98.111,4.38972576]
[1770145864643,15.68022086,98.16,98.111,4.38972576]
[1770145864857,15.68022086,98.16,98.056,40.79293341]
[1770145864858,15.68022086,98.18,98.13,15.68022086]
[1770145865453,15.68022086,98.16,98.111,4.28670576]
[1770145865853,4.26317603,98.197,98.14,15.68022086]
[1770145866056,6.48887781,98.208,98.134,4.27527085]
[1770145866261,4.26317603,98.2,98.067,40.78821743]
[1770145866444,15.68022086,98.17,98.12,15.68022086]
[1770145866646,15.68022086,98.19,98.14,15.68022086]
[1770145867141,4.26317603,98.192,98.079,0.14216157]
[1770145867448,15.68022086,98.17,98.12,20.06994662]
[1770145867646,15.68022086,98.22,98.161,4.38972576]
[1770145867850,4.26317603,98.224,98.17,15.68022086]
[1770145868051,4.26317603,98.256,98.21,15.68022086]
[1770145868344,50.47726761,98.354,98.14,168.12716455]
[1770145868345,4.26317603,98.311,98.251,4.38972576]
[1770145868537,15.68022086,98.29,98.24,15.68022086]
[1770145868744,15.68022086,98.26,98.225,4.38972576]
[1770145868958,15.68022086,98.25,98.201,4.38972576]
[1770145869137,15.68022086,98.24,98.201,4.38972576]
[1770145869341,157.57637368,98.365,98.183,4.38972576]
[1770145869342,15.68022086,98.22,98.183,4.38972576]
[1770145869541,4.27527085,98.292,98.166,4.38972576]
[1770145869542,4.26317603,98.231,98.166,4.38972576]
[1770145869750,4.27527085,98.292,98.174,2.96572346]
[1770145869751,15.68022086,98.22,98.174,2.96572346]
[1770145869936,6.53497263,98.279,98.128,40.76295558]
[1770145869937,15.68022086,98.24,98.181,2.96572346]
[1770145870142,4.26317603,98.247,98.191,2.96572346]
[1770145870335,10.36219619,98.25,98.191,2.96572346]
[1770145870535,10.36219619,98.23,98.18,10.36219619]
[1770145870751,4.26317603,98.239,98.19,10.36219619]
[1770145870962,10.36219619,98.25,98.189,2.96572346]
[1770145871139,4.26317603,98.255,98.2,10.36219619]
[1770145871459,10.36219619,98.24,98.19,10.36219619]
[1770145871638,10.36219619,98.23,98.18,10.36219619]
[1770145871841,10.36219619,98.22,98.172,2.96572346]
[1770145872054,10.36219619,98.21,98.16,13.32791965]
[1770145872463,4.26317603,98.223,98.145,25.47226456]
[1770145872464,15.7683944,98.22,98.17,15.7683944]
[1770145872641,4.26317603,98.239,98.19,15.7683944]
[1770145872837,6.53497263,98.279,98.211,2.96572346]
[1770145872838,4.26317603,98.273,98.211,2.96572346]
[1770145873050,4.26317603,98.289,98.23,15.7683944]
[1770145873259,4.26317603,98.249,98.179,2.96572346]
[1770145873450,4.26317603,98.249,98.137,50.71337258]
[1770145873451,4.26317603,98.249,98.2,15.7683944]
[1770145873652,4.26317603,98.249,98.19,2.96572346]
[1770145873858,4.27527085,98.322,98.172,4.27527085]
[1770145873859,15.7683944,98.26,98.21,15.7683944]
[1770145874067,15.7683944,98.25,98.206,2.96572346]
[1770145874266,4.26317603,98.266,98.21,15.7683944]
[1770145874560,20.03157043,98.26,98.21,15.7683944]
[1770145874966,15.7683944,98.26,98.188,10.18450187]
[1770145875152,4.26317603,98.269,98.22,15.7683944]
[1770145875452,4.26317603,98.269,98.174,28.3]
[1770145875453,15.7683944,98.3,98.25,15.7683944]
[1770145875660,50.12061653,98.38,98.221,10.18112216]
[1770145875661,15.7683944,98.34,98.29,15.7683944]
[1770145875842,15.7683944,98.32,98.264,4.38972576]
[1770145876042,15.7683944,98.31,98.264,4.38972576]
[1770145876257,15.7683944,98.31,98.25,15.7683944]
[1770145876460,15.7683944,98.28,98.247,4.38972576]
[1770145876664,15.7683944,98.27,98.228,4.38972576]
[1770145877066,15.7683944,98.26,98.228,4.38972576]
[1770145877268,15.7683944,98.28,98.228,4.38972576]
[1770145877472,0.14216157,98.323,98.25,15.7683944]
[1770145877771,28.06,98.327,98.222,4.38972576]
[1770145877772,15.7683944,98.26,98.222,4.38972576]
[1770145878277,4.26317603,98.286,98.222,4.38972576]
[1770145878278,15.7683944,98.27,98.222,4.38972576]
[1770145878488,15.7683944,98.28,98.23,15.7683944]
[1770145878681,4.26317603,98.31,98.251,4.38972576]
[1770145878885,15.7683944,98.3,98.251,4.38972576]
[1770145879074,4.26317603,98.327,98.271,4.38972576]
[1770145879263,15.7683944,98.34,98.291,4.38972576]
[1770145879463,15.7683944,98.31,98.249,4.38972576]
[1770145879685,15.7683944,98.31,98.261,4.38972576]
[1770145879884,4.26317603,98.319,98.27,15.7683944]
[1770145880087,15.7683944,98.3,98.261,4.38972576]
[1770145880390,15.7683944,98.29,98.241,4.38972576]
[1770145880570,4.24283601,98.332,98.27,15.7683944]
[1770145880780,15.7683944,98.32,98.27,15.7683944]
[1770145880972,28.02,98.371,98.242,4.27527085]
[1770145880973,4.24283601,98.387,98.311,4.13886259]
[1770145881168,4.24283601,98.387,98.272,0.14216157]
[1770145881169,4.24283601,98.387,98.34,15.7683944]
[1770145881383,15.7683944,98.38,98.33,15.7683944]
[1770145881585,4.24283601,98.387,98.33,15.7683944]
[1770145881802,4.24283601,98.387,98.279,5.36086188]
[1770145881803,4.24283601,98.387,98.34,15.7683944]
[1770145881973,4.24283601,98.387,98.329,4.13886259]
[1770145881974,15.7683944,98.38,98.329,4.13886259]
[1770145882165,6.46465197,98.409,98.302,4.27527085]
[1770145882166,20.01123041,98.4,98.35,15.7683944]
[1770145882486,20.01123041,98.4,98.337,4.13886259]
[1770145882487,4.24283601,98.399,98.337,4.13886259]
[1770145882664,4.24283601,98.399,98.34,15.7683944]
[1770145882665,15.7683944,98.39,98.34,15.7683944]
[1770145882866,4.24283601,98.399,98.35,15.7683944]
[1770145883067,4.24283601,98.399,98.331,10.16973284]
[1770145883068,4.24283601,98.446,98.39,15.7683944]
[1770145883281,4.24283601,98.446,98.381,4.13886259]
[1770145883282,4.24283601,98.419,98.365,4.13886259]
[1770145883471,15.7683944,98.4,98.365,4.13886259]
[1770145883680,15.7683944,98.38,98.343,4.13886259]
[1770145883880,15.7683944,98.38,98.327,4.13886259]
[1770145884184,15.7683944,98.43,98.371,4.13886259]
[1770145884367,4.24283601,98.436,98.371,4.13886259]
[1770145884570,4.24283601,98.472,98.42,15.70327146]
[1770145884767,4.24283601,98.472,98.385,4.27527085]
[1770145884768,4.24283601,98.512,98.46,15.70327146]
[1770145885092,4.24283601,98.512,98.385,4.27527085]
[1770145885093,7.50624731,98.58,98.479,0.7385595]
[1770145885289,4.6,98.61,98.56,15.70327146]
[1770145885478,20.30327146,98.61,98.528,5.36086188]
[1770145885796,20.30327146,98.61,98.54,15.70327146]
[1770145885797,4.5,98.609,98.54,15.70327146]
[1770145885966,4.5,98.609,98.501,4.27527085]
[1770145885967,15.80327146,98.61,98.555,4.27527085]
[1770145886168,0.1,98.61,98.58,15.70327146]
[1770145886504,4.5,98.589,98.53,15.70327146]
[1770145886802,4.5,98.607,98.55,15.70327146]
[1770145886967,0.1,98.61,98.57,15.70327146]
[1770145887168,4.5,98.579,98.505,4.27527085]
[1770145887376,4.5,98.559,98.5,15.70327146]
[1770145887577,4.5,98.539,98.461,4.27527085]
[1770145887797,15.70327146,98.53,98.48,15.70327146]
[1770145887993,4.5,98.539,98.48,15.70327146]
[1770145888222,4.5,98.594,98.52,15.70327146]
[1770145888486,28.08,98.602,98.52,15.70327146]
[1770145888487,4.5,98.569,98.52,15.70327146]
[1770145888704,4.5,98.569,98.481,4.27527085]
[1770145888705,4.5,98.579,98.51,15.70327146]
[1770145888873,15.70327146,98.56,98.51,15.70327146]
[1770145889068,4.5,98.569,98.53,15.70327146]
[1770145889268,15.70327146,98.59,98.53,15.70327146]
[1770145889269,4.5,98.589,98.53,15.70327146]
[1770145889491,0.1,98.61,98.5,28.26]
[1770145889492,4.5,98.559,98.5,15.70327146]
[1770145889693,4.5,98.549,98.491,10.15317614]
[1770145889884,20.20327146,98.54,98.48,15.70327146]
[1770145890090,0.1,98.61,98.468,4.27527085]
[1770145890091,4.5,98.559,98.468,4.27527085]
[1770145890306,4.5,98.579,98.52,15.70327146]
[1770145890480,15.70327146,98.59,98.505,4.27527085]
[1770145890674,15.70327146,98.57,98.502,10.15207813]
[1770145890893,15.70327146,98.55,98.49,15.70327146]
[1770145891199,15.70327146,98.57,98.502,10.15207813]
[1770145891395,15.70327146,98.54,98.49,15.70327146]
[1770145892001,4.5,98.542,98.49,15.70327146]
[1770145892204,4.5,98.542,98.5,15.70327146]
[1770145892507,4.5,98.542,98.454,28.24]
[1770145892508,15.70327146,98.57,98.478,5.50302345]
[1770145892701,15.70327146,98.57,98.477,28.24]
[1770145892702,15.70327146,98.57,98.491,10.15321196]
[1770145892907,20.20327146,98.55,98.5,15.70327146]
[1770145893101,4.5,98.549,98.5,15.70327146]
[1770145893298,20.20327146,98.56,98.51,15.70327146]
[1770145893612,0.3036362,98.611,98.48,4.27527085]
[1770145893613,15.70327146,98.55,98.49,15.70327146]
[1770145893807,4.5,98.559,98.5,15.70327146]
[1770145894193,4.5,98.609,98.54,15.70327146]
[1770145894387,15.70327146,98.58,98.53,15.70327146]
[1770145894610,4.5,98.578,98.52,15.70327146]
[1770145894996,15.70327146,98.56,98.51,15.70327146]
[1770145895197,15.70327146,98.54,98.49,15.70327146]
[1770145895613,15.70327146,98.53,98.48,15.70327146]
[1770145895931,15.70327146,98.53,98.461,4.27527085]
[1770145895932,15.70327146,98.52,98.46,15.70327146]
[1770145896299,4.5,98.528,98.42,40.64177195]
[1770145896497,4.5,98.52,98.47,15.70327146]
[1770145896812,4.5,98.479,98.356,60.20856476]
[1770145897016,15.70327146,98.45,98.357,10.16704454]
[1770145897216,4.27527085,98.511,98.357,10.16704454]
[1770145897217,4.5,98.576,98.44,15.70327146]
[1770145897516,4.5,98.519,98.47,15.70327146]
[1770145897815,4.5,98.539,98.5,15.70327146]
[1770145898017,4.5,98.579,98.53,15.70327146]
[1770145898403,4.5,98.559,98.5,15.70327146]
[1770145898703,4.5,98.579,98.52,15.70327146]
[1770145899217,15.70327146,98.56,98.491,4.27527085]
[1770145899518,15.70327146,98.56,98.471,35.54345949]
[1770145899519,4.5,98.539,98.471,10.15527414]
[1770145899715,4.5,98.539,98.49,15.70327146]
[1770145900216,4.5,98.539,98.48,15.70327146]
[1770145900217,15.70327146,98.53,98.48,15.70327146]
[1770145900410,4.5,98.539,98.49,15.70327146]
[1770145900612,4.27527085,98.601,98.462,5.36086188]
[1770145900613,4.5,98.6,98.462,5.36086188]
[1770145900818,4.5,98.559,98.5,15.70327146]
[1770145901115,4.5,98.539,98.48,15.70327146]
[1770145901318,4.5,98.539,98.49,15.70327146]
[1770145901622,4.5,98.579,98.52,15.70327146]
[1770145901802,4.5,98.569,98.52,15.70327146]
[1770145902003,4.5,98.569,98.51,15.70327146]
[1770145902200,6.4668731,98.628,98.488,25.38374589]
[1770145902201,4.5,98.609,98.56,15.70327146]
[1770145902413,4.5,98.589,98.521,35.52542096]
[1770145902613,6.4668731,98.628,98.501,4.27527085]
[1770145902614,20.20327146,98.56,98.501,4.27527085]
[1770145902799,4.5,98.56,98.515,10.15072895]
[1770145903000,20.20327146,98.56,98.51,15.70327146]
[1770145903305,4.5,98.609,98.521,35.66758253]
[1770145903626,4.5,98.609,98.511,4.27527085]
[1770145903627,4.5,98.65,98.6,15.70327146]
[1770145903822,4.5,98.65,98.591,10.14291365]
[1770145903823,4.5,98.702,98.64,15.70327146]
[1770145904023,4.5,98.758,98.68,15.70327146]
[1770145904233,7.17024321,98.769,98.629,0.14216157]
[1770145904234,4.5,98.768,98.681,28.22]
[1770145904417,5.30002513,98.841,98.645,28.22]
[1770145904418,4.5,98.739,98.645,28.22]
[1770145904620,15.70327146,98.71,98.66,15.70327146]
[1770145904921,15.70327146,98.71,98.645,28.22]
[1770145904922,4.5,98.709,98.65,15.70327146]
[1770145905124,4.5,98.689,98.592,0.14216157]
[1770145905310,4.5,98.689,98.594,4.27527085]
[1770145905508,4.5,98.672,98.61,15.70327146]
[1770145905822,4.5,98.672,98.591,28.22]
[1770145905823,15.70327146,98.64,98.591,28.22]
[1770145906028,4.5,98.642,98.58,15.70327146]
[1770145906325,4.5,98.638,98.58,15.70327146]
[1770145906625,4.5,98.658,98.6,15.70327146]
[1770145906926,4.5,98.702,98.601,10.14188497]
[1770145907128,4.5,98.747,98.69,15.70327146]
[1770145907329,4.5,98.766,98.723,4.27527085]
[1770145907502,4.5,98.806,98.76,15.70327146]
[1770145907702,4.5,98.806,98.677,28.2]
[1770145907703,4.5,98.789,98.678,0.14216157]
[1770145907901,4.5,98.769,98.691,0.14216157]
[1770145908118,15.70327146,98.73,98.68,15.70327146]
[1770145908335,4.5,98.689,98.633,28.2]
[1770145908503,4.5,98.689,98.546,40.59014704]
[1770145908504,4.5,98.667,98.6,15.70327146]
[1770145908820,4.5,98.73,98.587,40.57327664]
[1770145909119,4.5,98.749,98.654,10.13641912]
[1770145909303,4.5,98.689,98.568,40.5809079]
[1770145909503,4.5,98.689,98.56,40.58400488]
[1770145909504,15.70327146,98.66,98.6,15.70327146]
[1770145909723,4.5,98.679,98.61,4.27527085]
[1770145909903,4.5,98.659,98.57,40.57994328]
[1770145910108,4.5,98.696,98.63,15.70327146]
[1770145910320,4.5,98.669,98.594,10.14252912]
[1770145910523,4.5,98.669,98.537,40.59371797]
[1770145910524,4.5,98.849,98.611,223.09884289]
[1770145910826,4.5,98.84,98.795,5.29230422]
[1770145911015,4.5,98.84,98.8,15.70327146]
[1770145911213,4.5,98.861,98.81,15.70327146]
[1770145911427,4.5,98.861,98.8,15.70327146]
[1770145911618,4.5,98.839,98.795,5.29230422]
[1770145911824,15.70327146,98.81,98.75,15.70327146]
[1770145912022,4.47229308,98.834,98.751,4.34912025]
[1770145912222,15.70327146,98.83,98.77,15.70327146]
[1770145912524,15.70327146,98.83,98.742,4.27527085]
[1770145912525,15.70327146,98.82,98.757,4.34912025]
[1770145912728,4.47229308,98.908,98.78,15.70327146]
[1770145912903,4.47229308,98.849,98.77,25.31131473]
[1770145913111,4.47229308,98.849,98.78,15.70327146]
[1770145913306,15.70327146,98.84,98.78,15.70327146]
[1770145913626,15.70327146,98.83,98.77,15.70327146]
[1770145913815,15.70327146,98.84,98.78,20.04915946]
[1770145914013,4.31874459,98.874,98.8,15.70327146]
[1770145914337,15.70327146,98.85,98.79,15.70327146]
[1770145914543,15.70327146,98.83,98.782,4.345888]
[1770145914749,15.70327146,98.81,98.761,4.345888]
[1770145914920,15.70327146,98.82,98.761,4.345888]
[1770145915118,4.31874459,98.832,98.74,4.345888]
[1770145915119,15.70327146,98.8,98.74,4.345888]
[1770145915335,4.31874459,98.799,98.745,10.12701624]
[1770145915533,0.14216157,98.872,98.732,4.345888]
[1770145915742,15.70327146,98.79,98.74,4.345888]
[1770145916049,15.70327146,98.78,98.74,4.345888]
[1770145916253,15.70327146,98.78,98.721,4.345888]
[1770145916460,10.11777253,98.836,98.701,4.345888]
[1770145916461,15.70327146,98.76,98.701,4.345888]
[1770145916946,4.31874459,98.772,98.671,28.16]
[1770145916947,15.70327146,98.74,98.69,15.70327146]
[1770145917318,4.31874459,98.772,98.69,15.70327146]
[1770145917544,4.31874459,98.772,98.686,4.345888]
[1770145917545,15.70327146,98.73,98.686,4.345888]
[1770145917725,15.70327146,98.75,98.69,15.70327146]
[1770145917931,15.70327146,98.74,98.686,4.345888]
[1770145918143,4.31874459,98.755,98.69,15.70327146]
[1770145918339,15.70327146,98.75,98.69,15.70327146]
[1770145918751,15.70327146,98.74,98.686,4.345888]
[1770145919076,4.31874459,98.755,98.686,4.345888]
[1770145919224,15.70327146,98.73,98.67,15.70327146]
[1770145919418,15.70327146,98.75,98.691,4.345888]
[1770145919825,15.70327146,98.73,98.671,4.345888]
[1770145920025,4.31874459,98.739,98.69,15.70327146]
[1770145920238,4.31874459,98.739,98.675,10.13419277]
[1770145920461,4.31874459,98.719,98.649,4.345888]
[1770145920624,4.31874459,98.719,98.593,40.57068025]
[1770145920625,15.70327146,98.74,98.67,4.345888]
[1770145920827,4.31874459,98.709,98.641,4.345888]
[1770145921029,4.31874459,98.709,98.663,10.13549918]
[1770145921248,4.27527085,98.773,98.635,28.16]
[1770145921249,4.31874459,98.689,98.635,28.16]
[1770145921540,4.31874459,98.799,98.641,4.345888]
[1770145921731,4.31874459,98.736,98.661,10.13571725]
[1770145922042,4.31874459,98.759,98.691,4.345888]
[1770145922350,4.31874459,98.709,98.653,28.16]
[1770145922671,4.31874459,98.728,98.662,4.345888]
[1770145922827,4.31874459,98.728,98.68,15.70327146]
[1770145923140,4.31874459,98.728,98.647,25.34283148]
[1770145923141,4.31874459,98.689,98.61,15.70327146]
[1770145923339,4.31874459,98.689,98.571,50.43400907]
[1770145923340,4.31874459,98.639,98.57,15.70327146]
[1770145923539,4.31874459,98.639,98.563,4.345888]
[1770145923540,15.70327146,98.62,98.563,4.345888]
[1770145923851,4.31874459,98.639,98.58,15.70327146]
[1770145924046,4.31874459,98.683,98.62,0.27062597]
[1770145924238,15.70327146,98.64,98.581,4.345888]
[1770145924434,4.31874459,98.652,98.581,4.345888]
[1770145924643,4.31874459,98.632,98.57,15.70327146]
[1770145924844,15.70327146,98.63,98.571,4.345888]
[1770145925040,15.70327146,98.62,98.571,4.345888]
[1770145925240,15.70327146,98.62,98.529,50.42811369]
[1770145925241,4.27527085,98.665,98.55,4.345888]
[1770145925441,4.27527085,98.665,98.508,40.6058292]
[1770145925442,15.70327146,98.65,98.581,4.345888]
[1770145925650,5.36086188,98.731,98.581,4.345888]
[1770145925651,4.31874459,98.716,98.641,4.345888]
[1770145925951,4.31874459,98.831,98.7,15.70327146]
[1770145926154,4.31874459,98.831,98.76,15.70327146]
[1770145926355,4.31874459,98.789,98.721,32.505888]
[1770145926650,40.44728873,98.895,98.697,4.345888]
[1770145926651,0.1023,98.708,98.697,4.345888]
[1770145926852,15.70327146,98.77,98.701,4.345888]
[1770145927059,15.70327146,98.77,98.711,4.345888]
[1770145927264,15.70327146,98.74,98.689,4.345888]
[1770145927435,4.31874459,98.749,98.689,4.345888]
[1770145927748,4.31874459,98.772,98.7,15.70327146]
[1770145927933,4.31874459,98.772,98.691,4.345888]
[1770145928135,15.70327146,98.75,98.691,4.345888]
[1770145928347,15.70327146,98.76,98.701,4.345888]
[1770145928550,40.46662205,98.847,98.681,4.345888]
[1770145928551,15.70327146,98.74,98.681,4.345888]
[1770145928744,15.70327146,98.72,98.66,20.04915946]
[1770145928935,15.70327146,98.71,98.66,20.04915946]
[1770145929135,15.70327146,98.73,98.671,4.345888]
[1770145929333,15.70327146,98.73,98.67,25.83797074]
[1770145929334,4.31874459,98.896,98.725,5.36086188]
[1770145929537,15.70327146,98.85,98.8,15.70327146]
[1770145929740,15.70327146,98.81,98.766,4.345888]
[1770145929939,15.70327146,98.79,98.766,4.345888]
[1770145930232,15.70327146,98.78,98.691,4.345888]
[1770145930432,75.86562678,98.859,98.54,15.70327146]
[1770145930433,0.14216157,98.775,98.655,4.345888]
[1770145930647,15.70327146,98.73,98.681,4.345888]
[1770145930849,50.68584602,98.836,98.658,4.27527085]
[1770145930850,4.31874459,98.77,98.675,4.345888]
[1770145931147,4.31874459,98.77,98.701,4.345888]
[1770145931450,5.36086188,98.861,98.7,15.70327146]
[1770145931451,15.70327146,98.8,98.741,4.345888]
[1770145931651,15.70327146,98.79,98.741,4.345888]
[1770145931950,50.57708452,98.859,98.662,50.39171185]
[1770145931951,15.70327146,98.77,98.719,4.345888]
[1770145932160,4.31874459,98.795,98.73,15.70327146]
[1770145932161,15.70327146,98.78,98.73,15.70327146]
[1770145932530,15.70327146,98.78,98.701,0.14216157]
[1770145932531,15.70327146,98.75,98.699,4.345888]
[1770145932941,15.70327146,98.75,98.672,25.33640443]
[1770145932942,15.70327146,98.77,98.724,10.12915689]
[1770145933150,4.27527085,98.846,98.731,4.345888]
[1770145933453,15.70327146,98.74,98.697,4.345888]
[1770145933646,15.70327146,98.8,98.663,25.33870342]
[1770145933647,0.14216157,98.755,98.68,15.70327146]
[1770145933950,4.31874459,98.736,98.677,4.345888]
[1770145934151,5.36086188,98.811,98.611,40.56323981]
[1770145934152,15.70327146,98.74,98.695,4.345888]
[1770145934352,4.31874459,98.757,98.681,4.345888]
[1770145934552,15.70327146,98.8,98.681,4.345888]
[1770145934553,4.31874459,98.753,98.681,4.345888]
[1770145934743,15.70327146,98.72,98.681,4.345888]
[1770145934944,4.31874459,98.753,98.681,4.345888]
[1770145935140,15.70327146,98.8,98.662,4.345888]
[1770145935141,15.70327146,98.71,98.662,4.345888]
[1770145935347,4.31874459,98.735,98.662,4.345888]
[1770145935545,15.70327146,98.71,98.662,4.345888]